bitfinex-derivatives/quotes_BTCF0:USTF0_20250830
["timestamp","ask_amount","ask_price","bid_price","bid_amount"]
[1756557827613,0.69314132,108510.0,108500.0,0.03856]
[1756557828312,0.44758791,108510.0,108500.0,0.09459]
[1756557828508,0.69314132,108510.0,108500.0,0.09459]
[1756557829515,0.44758791,108510.0,108500.0,0.09459]
[1756557829709,0.69314132,108510.0,108500.0,0.09459]
[1756557830613,0.62720199,108510.0,108500.0,0.09459]
[1756557830815,0.38164858,108510.0,108500.0,0.09459]
[1756557831116,0.62720199,108510.0,108500.0,0.34014341]
[1756557831713,0.62720199,108510.0,108500.0,0.09459]
[1756557831916,0.62720199,108510.0,108500.0,0.34014341]
[1756557833715,0.38164858,108510.0,108500.0,0.34014341]
[1756557834015,0.38164858,108510.0,108500.0,0.34459]
[1756557834217,0.4476272,108510.0,108500.0,0.59014341]
[1756557834411,0.0868272,108510.0,108500.0,0.34459]
[1756557834613,0.0868272,108510.0,108500.0,0.59014341]
[1756557836513,0.0862272,108510.0,108500.0,0.59014341]
[1756557837316,0.02024858,108510.0,108500.0,0.59014341]
[1756557837911,0.06973952,108510.0,108500.0,1.30709443]
[1756557838116,0.00956952,108510.0,108500.0,1.63709443]
[1756557838419,0.16227862,108530.0,108520.0,0.09398]
[1756557838619,0.16227862,108530.0,108520.0,1.21825891]
[1756557839919,0.10365862,108530.0,108520.0,1.21825891]
[1756557840214,0.17732532,108530.0,108520.0,0.1123455]
[1756557840418,0.17732532,108530.0,108520.0,1.22081891]
[1756557840619,0.1113467,108530.0,108520.0,1.22081891]
[1756557842519,0.48252862,108540.0,108520.0,1.41478891]
[1756557842717,0.45336,108540.0,108530.0,0.33896341]
[1756557843521,0.39761,108540.0,108530.0,0.33896341]
[1756557844221,0.45336,108540.0,108530.0,0.33896341]
[1756557844722,0.48154399,108540.0,108530.0,0.33896341]
[1756557845217,0.42579399,108540.0,108530.0,0.33896341]
[1756557846213,0.12074399,108540.0,108530.0,0.33896341]
[1756557846615,0.12074399,108540.0,108530.0,0.41352334]
[1756557848223,0.43737218,108550.0,108530.0,0.41352334]
[1756557848415,0.43737218,108550.0,108540.0,0.86324]
[1756557848621,0.47418218,108550.0,108540.0,0.95665]
[1756557849028,0.50145155,108550.0,108540.0,0.95665]
[1756557849720,0.50145155,108550.0,108540.0,0.09341]
[1756557849927,0.50145155,108550.0,108540.0,1.20712341]
[1756557850128,0.52123926,108550.0,108540.0,1.20712341]
[1756557850428,0.52123926,108550.0,108540.0,0.33896341]
[1756557850625,0.52123926,108550.0,108540.0,1.20700341]
[1756557852425,0.52123926,108550.0,108540.0,1.20704341]
[1756557853327,0.52123926,108550.0,108540.0,1.20644341]
[1756557854125,0.52123926,108550.0,108540.0,1.20656341]
[1756557854729,0.52123926,108550.0,108540.0,0.96101]
[1756557854928,0.76679267,108550.0,108540.0,0.03964]
[1756557855126,0.09256,108540.0,108530.0,1.03556993]
[1756557855329,0.71870112,108540.0,108530.0,1.03556993]
[1756557855528,0.71870112,108540.0,108530.0,0.16796993]
[1756557855720,0.71870112,108540.0,108530.0,0.98187993]
[1756557855921,0.47314771,108540.0,108530.0,0.98187993]
[1756557856134,0.47314771,108540.0,108530.0,1.03564993]
[1756557856135,0.71870112,108540.0,108530.0,1.03564993]
[1756557856725,0.71870112,108540.0,108530.0,0.98187993]
[1756557857333,0.71870112,108540.0,108530.0,1.03564993]
[1756557857528,0.47314771,108540.0,108530.0,1.03564993]
[1756557857729,0.71870112,108540.0,108530.0,1.03564993]
[1756557858326,0.76802723,108540.0,108530.0,1.03564993]
[1756557861739,0.76802723,108540.0,108530.0,0.16796993]
[1756557862042,0.76802723,108540.0,108530.0,1.03440993]
[1756557862338,0.76802723,108540.0,108530.0,0.16796993]
[1756557862542,0.71870112,108540.0,108530.0,0.16796993]
[1756557862932,1.28023315,108540.0,108520.0,0.92017]
[1756557863137,0.69891341,108530.0,108520.0,0.95981]
[1756557863338,0.71870112,108530.0,108520.0,0.95981]
[1756557864038,0.71870112,108530.0,108520.0,0.09341]
[1756557866139,0.78467974,108530.0,108520.0,0.09341]
[1756557866340,0.71870112,108530.0,108520.0,0.09341]
[1756557867142,0.78467974,108530.0,108520.0,0.09341]
[1756557867344,0.71870112,108530.0,108520.0,0.09341]
[1756557868146,0.78467974,108530.0,108520.0,0.09341]
[1756557868344,0.71870112,108530.0,108520.0,0.09341]
[1756557868845,0.71870112,108530.0,108520.0,0.03964]
[1756557869345,0.71870112,108530.0,108520.0,0.09341]
[1756557870651,0.78467974,108530.0,108520.0,0.09341]
[1756557873351,0.71870112,108530.0,108520.0,0.09341]
[1756557873547,0.78467974,108530.0,108520.0,0.09341]
[1756557874144,0.53912633,108530.0,108520.0,0.09341]
[1756557874347,0.71870112,108530.0,108520.0,0.09341]
[1756557875147,0.53175561,108530.0,108520.0,0.09341]
[1756557879354,0.58116271,108530.0,108520.0,0.09341]
[1756557883557,0.40730822,108530.0,108520.0,0.09341]
[1756557883758,0.76810822,108530.0,108520.0,0.09341]
[1756557884662,0.76810822,108530.0,108520.0,0.03964]
[1756557885571,0.71870112,108530.0,108520.0,0.03964]
[1756557886265,0.78467974,108530.0,108520.0,0.03964]
[1756557890965,0.78467974,108530.0,108520.0,0.09345]
[1756557894471,0.78467974,108530.0,108520.0,0.03964]
[1756557894660,0.72892974,108530.0,108510.0,1.17879023]
[1756557894865,0.1068599,108520.0,108510.0,1.17879023]
[1756557895067,0.12664761,108520.0,108510.0,1.17879023]
[1756557895277,0.40926375,108520.0,108510.0,1.21437296]
[1756557895774,0.40926375,108520.0,108510.0,0.96904682]
[1756557896081,0.40926375,108520.0,108510.0,1.21537296]
[1756557896379,0.40926375,108520.0,108510.0,1.21637296]
[1756557896768,0.16393761,108520.0,108510.0,1.21637296]
[1756557896967,0.10662761,108520.0,108510.0,1.21637296]
[1756557897575,0.10662761,108520.0,108510.0,1.57717296]
[1756557898874,0.06933761,108520.0,108510.0,2.0724991]
[1756557899075,0.0495499,108520.0,108510.0,2.0724991]
[1756557899264,0.01978771,108520.0,108510.0,1.82233774]
[1756557899572,0.16475243,108530.0,108520.0,0.05381]
[1756557899764,0.18462945,108530.0,108520.0,0.33486546]
[1756557900171,0.18462945,108530.0,108520.0,0.08962]
[1756557900472,0.18462945,108530.0,108520.0,0.33486546]
[1756557901477,0.18462945,108530.0,108520.0,1.19566546]
[1756557902681,0.18462945,108530.0,108520.0,0.95038]
[1756557902866,0.18462945,108530.0,108520.0,1.19562546]
[1756557905969,0.18462945,108530.0,108520.0,0.08962]
[1756557906174,0.18462945,108530.0,108520.0,1.19558546]
[1756557908879,0.18462945,108530.0,108520.0,0.95034]
[1756557909074,0.18462945,108530.0,108520.0,1.19558546]
[1756557910081,0.18462945,108530.0,108520.0,1.19554546]
[1756557911186,0.12731945,108530.0,108520.0,1.19554546]
[1756557911684,0.09002945,108530.0,108520.0,1.19554546]
[1756557913288,0.34391722,108540.0,108520.0,1.55634546]
[1756557913490,0.43586722,108540.0,108530.0,0.33431546]
[1756557914390,0.43586722,108540.0,108530.0,0.40888268]
[1756557915292,0.15792862,108540.0,108530.0,0.40888268]
[1756557915695,0.15792862,108540.0,108530.0,0.76968268]
[1756557915990,0.15792862,108540.0,108530.0,0.52443722]
[1756557916191,0.15792862,108540.0,108530.0,0.76968268]
[1756557917393,1.10245562,108550.0,108530.0,0.76968268]
[1756557917692,0.5395508,108550.0,108540.0,0.33431546]
[1756557917883,0.5395508,108550.0,108540.0,1.19487546]
[1756557918995,0.1787508,108550.0,108540.0,1.19487546]
[1756557919690,0.05695218,108550.0,108540.0,1.19487546]
[1756557919989,0.05695218,108550.0,108540.0,1.55567546]
[1756557920189,0.11277218,108550.0,108540.0,1.55567546]
[1756557920396,0.05695218,108550.0,108540.0,1.55567546]
[1756557920799,0.1229308,108550.0,108540.0,1.55567546]
[1756557921298,0.0868008,108550.0,108540.0,1.55567546]
[1756557921892,0.0868008,108550.0,108540.0,1.31043]
[1756557922094,0.02082218,108550.0,108540.0,1.80092092]
[1756557922391,0.05695218,108550.0,108540.0,0.33431546]
[1756557922590,0.05695218,108550.0,108540.0,1.55559546]
[1756557923496,0.02082218,108550.0,108540.0,1.55559546]
[1756557925197,0.02082218,108550.0,108540.0,0.44987]
[1756557925399,0.07653283,108550.0,108540.0,1.55555546]
[1756557925996,0.04040283,108550.0,108540.0,1.55555546]
[1756557926499,0.04040283,108550.0,108540.0,1.31031]
[1756557926699,0.04040283,108550.0,108540.0,1.55555546]
[1756557927400,0.04040283,108550.0,108540.0,1.8006191]
[1756557927700,0.07653283,108550.0,108540.0,1.8005391]
[1756557928602,0.07653283,108550.0,108540.0,0.9401791]
[1756557928798,0.07653283,108550.0,108540.0,1.8005391]
[1756557930099,0.04040283,108550.0,108540.0,1.31023]
[1756557930300,0.04040283,108550.0,108540.0,1.8005391]
[1756557931805,0.08665736,108550.0,108540.0,1.8005391]
[1756557934208,0.08665736,108550.0,108540.0,1.31023]
[1756557934409,0.08665736,108550.0,108540.0,1.8005391]
[1756557935307,0.04040283,108550.0,108540.0,1.8005391]
[1756557938513,0.04040283,108550.0,108540.0,2.29569365]
[1756557938807,0.09588445,108560.0,108550.0,0.5826791]
[1756557939004,0.11656332,108560.0,108550.0,0.9434791]
[1756557939605,0.11656332,108560.0,108550.0,0.69832455]
[1756557940110,0.15202332,108560.0,108550.0,1.55848455]
[1756557941208,0.20904332,108560.0,108550.0,1.31329]
[1756557941412,0.20904332,108560.0,108550.0,1.55844455]
[1756557942009,0.15202332,108560.0,108550.0,1.55844455]
[1756557942209,0.20904332,108560.0,108550.0,1.55844455]
[1756557942510,0.45419787,108560.0,108550.0,1.31325]
[1756557942809,0.45419787,108560.0,108550.0,1.55840455]
[1756557943405,0.20904332,108560.0,108550.0,1.31325]
[1756557943607,0.45419787,108560.0,108550.0,1.55840455]
[1756557944207,0.20904332,108560.0,108550.0,1.55840455]
[1756557944407,0.45419787,108560.0,108550.0,1.55840455]
[1756557948315,0.15202332,108560.0,108550.0,1.55840455]
[1756557948510,0.15974671,108570.0,108560.0,0.09237]
[1756557948705,0.40490126,108570.0,108560.0,0.33752455]
[1756557951826,0.20591483,108570.0,108560.0,0.33752455]
[1756557952017,0.45106938,108570.0,108560.0,0.33752455]
[1756557952216,0.45106938,108570.0,108560.0,0.09237]
[1756557952417,0.20591483,108570.0,108560.0,0.09237]
[1756557952617,0.45106938,108570.0,108560.0,0.33752455]
[1756557952817,0.45106938,108570.0,108560.0,0.09237]
[1756557953117,0.45106938,108570.0,108560.0,0.33752455]
[1756557953519,0.20591483,108570.0,108560.0,0.33752455]
[1756557953721,0.39404938,108570.0,108560.0,0.5826791]
[1756557954217,0.14889483,108570.0,108560.0,0.5826791]
[1756557954417,0.39404938,108570.0,108560.0,0.5826791]
[1756557954721,0.14889483,108570.0,108560.0,0.5826791]
[1756557955222,0.39404938,108570.0,108560.0,0.5826791]
[1756557955622,0.11343483,108570.0,108560.0,0.5826791]
[1756557956014,0.11343483,108570.0,108560.0,0.9434791]
[1756557956318,0.06674274,108570.0,108560.0,0.9434791]
[1756557959723,0.08641317,108570.0,108560.0,0.9434791]
[1756557960520,0.04024505,108570.0,108560.0,0.9434791]
[1756557961018,0.07570505,108570.0,108560.0,1.8031991]
[1756557961215,0.04024505,108570.0,108560.0,1.8031991]
[1756557963722,0.08606538,108570.0,108560.0,1.8031991]
[1756557964833,0.08606538,108570.0,108560.0,1.31281]
[1756557965130,0.08606538,108570.0,108560.0,1.8031191]
[1756557968530,0.13561722,108570.0,108560.0,1.8031191]
[1756557969332,0.13561722,108570.0,108560.0,0.45317]
[1756557969631,0.13561722,108570.0,108560.0,1.8030391]
[1756557970630,0.13561722,108570.0,108560.0,1.31273]
[1756557970835,0.13561722,108570.0,108560.0,1.8030391]
[1756557975133,0.17140722,108570.0,108560.0,0.9434791]
[1756557975330,0.22873722,108570.0,108560.0,1.8029991]
[1756557975736,0.22873722,108570.0,108560.0,0.9434791]
[1756557975923,0.22873722,108570.0,108560.0,1.8029991]
[1756557976233,0.17140722,108570.0,108560.0,1.8029991]
[1756557978035,0.17140722,108570.0,108560.0,0.9434791]
[1756557978238,0.17140722,108570.0,108560.0,1.8029991]
[1756557979138,0.17140722,108570.0,108560.0,0.9434791]
[1756557979336,0.13561722,108570.0,108560.0,1.8029591]
[1756557980637,0.13561722,108570.0,108560.0,1.31265]
[1756557980834,0.06261538,108570.0,108560.0,1.8029591]
[1756557981036,0.02065814,108590.0,108580.0,0.1627897]
[1756557981237,0.45392,108620.0,108610.0,0.03828]
[1756557981435,0.45392,108620.0,108610.0,1.17501117]
[1756557982942,0.45392,108620.0,108610.0,0.93014]
[1756557983243,0.45392,108620.0,108610.0,1.17501117]
[1756557984036,0.49339946,108620.0,108610.0,1.17501117]
[1756557986052,0.49339946,108620.0,108610.0,0.93014]
[1756557986447,0.49339946,108620.0,108610.0,1.17501117]
[1756557987943,0.02065315,108630.0,108610.0,1.78581117]
[1756557988248,0.11377315,108630.0,108620.0,0.31558117]
[1756557989241,0.05644315,108630.0,108620.0,0.31558117]
[1756557989748,0.15259141,108630.0,108620.0,0.92995]
[1756557989948,0.15259141,108630.0,108620.0,1.17482117]
[1756557991440,0.15259141,108630.0,108620.0,1.24686715]
[1756557993555,0.05947141,108630.0,108620.0,1.60766715]
[1756557993744,0.02065315,108630.0,108620.0,1.60766715]
[1756557994352,0.05910172,108630.0,108620.0,1.60766715]
[1756557994645,0.02065315,108630.0,108620.0,1.60766715]
[1756557997254,0.755583,108630.0,108620.0,1.00175598]
[1756557997444,0.51071183,108630.0,108620.0,1.00175598]
[1756557997750,0.51071183,108630.0,108620.0,1.24662715]
[1756557998753,0.14991183,108630.0,108620.0,1.24662715]
[1756558000143,0.14991183,108630.0,108620.0,1.60742715]
[1756558000842,0.05886183,108630.0,108620.0,1.60742715]
[1756558001450,0.05886183,108630.0,108620.0,1.36255598]
[1756558001757,0.05886183,108630.0,108620.0,1.60742715]
[1756558002556,0.05886183,108630.0,108620.0,0.74842715]
[1756558002855,0.09488183,108630.0,108620.0,1.60734715]
[1756558003157,0.09488183,108630.0,108620.0,1.36247598]
[1756558003357,0.09488183,108630.0,108620.0,1.60734715]
[1756558003846,0.09488183,108630.0,108620.0,0.11032598]
[1756558003847,0.644783,108630.0,108620.0,0.11032598]
[1756558004050,1.25045417,108630.0,108620.0,0.07204598]
[1756558004246,0.950553,108630.0,108610.0,0.89101]
[1756558004464,0.7461001,108620.0,108610.0,0.92893]
[1756558004851,0.7461001,108620.0,108610.0,0.07001]
[1756558005053,0.7461001,108620.0,108610.0,0.87825]
[1756558005353,0.7461001,108620.0,108610.0,0.95349888]
[1756558006059,0.50122893,108620.0,108610.0,0.95349888]
[1756558006255,0.7461001,108620.0,108610.0,0.95349888]
[1756558007159,0.69672117,108620.0,108610.0,0.95349888]
[1756558007752,0.69672117,108620.0,108610.0,1.00413888]
[1756558009254,0.7628451,108620.0,108610.0,1.00413888]
[1756558009560,0.4020451,108620.0,108610.0,1.00413888]
[1756558009761,0.33592117,108620.0,108610.0,1.00413888]
[1756558010261,0.4020451,108620.0,108610.0,1.00413888]
[1756558013458,0.4020451,108620.0,108610.0,0.14525888]
[1756558013660,0.4020451,108620.0,108610.0,1.00413888]
[1756558015771,0.15717393,108620.0,108610.0,1.00413888]
[1756558015967,0.4020451,108620.0,108610.0,1.00413888]
[1756558016864,0.15717393,108620.0,108610.0,1.24901005]
[1756558019065,0.06612393,108620.0,108610.0,1.36493888]
[1756558019266,0.21603576,108630.0,108620.0,0.07001]
[1756558019563,0.21603576,108630.0,108620.0,0.31488117]
[1756558020960,0.21603576,108630.0,108620.0,0.07001]
[1756558021154,1.005583,108630.0,108610.0,0.10755888]
[1756558021358,0.05552,108600.0,108590.0,0.37955902]
[1756558021559,0.1440751,108600.0,108590.0,0.87755902]
[1756558021866,0.1649211,108600.0,108590.0,0.24487117]
[1756558022063,0.1649211,108600.0,108590.0,1.10363117]
[1756558022761,0.1649211,108600.0,108590.0,1.10463117]
[1756558023061,0.1649211,108600.0,108590.0,1.17693998]
[1756558023562,0.1649211,108600.0,108590.0,0.93210881]
[1756558023563,0.36024717,108600.0,108590.0,0.93210881]
[1756558023760,0.36024717,108600.0,108590.0,0.93110881]
[1756558023959,0.115376,108600.0,108590.0,0.93110881]
[1756558024157,0.115376,108600.0,108590.0,1.17597998]
[1756558025672,0.115376,108600.0,108590.0,0.93110881]
[1756558025972,0.115376,108600.0,108590.0,1.17597998]
[1756558026360,0.115376,108600.0,108590.0,1.10367117]
[1756558027270,0.04953052,108600.0,108590.0,1.42740906]
[1756558027471,0.04953052,108600.0,108590.0,1.78820906]
[1756558027771,0.10893647,108610.0,108590.0,0.92940906]
[1756558027967,0.16445647,108610.0,108600.0,0.60567117]
[1756558029066,0.06992647,108610.0,108600.0,0.60567117]
[1756558029274,0.06992647,108610.0,108600.0,0.3608]
[1756558029470,0.10893647,108610.0,108600.0,0.3608]
[1756558029668,0.10893647,108610.0,108600.0,0.60567117]
[1756558030369,0.05940595,108610.0,108600.0,0.60567117]
[1756558030575,0.10896143,108610.0,108600.0,0.60567117]
[1756558031375,0.06995143,108610.0,108600.0,0.60567117]
[1756558032072,0.10896143,108610.0,108600.0,0.60567117]
[1756558032574,0.06995143,108610.0,108600.0,0.60567117]
[1756558032876,0.10896143,108610.0,108600.0,0.60567117]
[1756558033778,0.10896143,108610.0,108600.0,0.3608]
[1756558033981,0.10896143,108610.0,108600.0,0.60567117]
[1756558037379,0.06995143,108610.0,108600.0,0.60567117]
[1756558037680,0.06995143,108610.0,108600.0,1.10054234]
[1756558037681,0.02039595,108610.0,108600.0,1.10054234]
[1756558038875,0.02039595,108610.0,108600.0,1.19261494]
[1756558039181,0.02039595,108610.0,108600.0,1.10054234]
[1756558043491,0.06668679,108630.0,108620.0,0.09086]
[1756558043792,0.0996223,108630.0,108620.0,1.55509117]
[1756558044589,0.0996223,108630.0,108620.0,1.57388638]
[1756558045188,0.0996223,108630.0,108620.0,0.71532638]
[1756558045490,0.1551423,108630.0,108620.0,1.57384638]
[1756558046588,0.0606123,108630.0,108620.0,1.32897521]
[1756558046786,0.0606123,108630.0,108620.0,1.57384638]
[1756558048089,0.02767679,108630.0,108620.0,2.17951755]
[1756558048298,0.02010666,108630.0,108620.0,2.17951755]
[1756558048591,0.02010666,108630.0,108620.0,1.93464638]
[1756558049385,0.03207629,108640.0,108620.0,2.21735305]
[1756558049585,0.07637213,108650.0,108630.0,0.88718234]
[1756558049787,0.11538213,108650.0,108640.0,1.19413117]
[1756558052595,0.11352419,108650.0,108640.0,1.19413117]
[1756558053698,0.14651968,108650.0,108640.0,1.19413117]
[1756558054792,0.12566755,108650.0,108640.0,1.19413117]
[1756558057995,0.07200549,108650.0,108640.0,1.19413117]
[1756558058197,0.07200549,108650.0,108640.0,0.09086]
[1756558058501,0.13101549,108650.0,108640.0,1.19385117]
[1756558060890,0.19713942,108650.0,108640.0,1.19385117]
[1756558061498,0.13812942,108650.0,108640.0,1.19385117]
[1756558062903,0.13812942,108650.0,108640.0,0.94898]
[1756558063094,0.13812942,108650.0,108640.0,1.19373117]
[1756558063604,0.19713942,108650.0,108640.0,1.19373117]
[1756558065201,0.13812942,108650.0,108640.0,1.19373117]
[1756558065801,0.13101549,108650.0,108640.0,1.19365117]
[1756558066298,0.19713942,108650.0,108640.0,1.19365117]
[1756558067503,0.13812942,108650.0,108640.0,1.55445117]
[1756558067805,0.50678978,108660.0,108640.0,1.55445117]
[1756558068006,0.54467978,108660.0,108650.0,0.34007117]
[1756558068207,0.54467978,108660.0,108650.0,0.41463711]
[1756558068704,0.54467978,108660.0,108650.0,0.34007117]
[1756558070407,0.57791137,108660.0,108650.0,0.34007117]
[1756558070907,0.49093159,108660.0,108650.0,0.34007117]
[1756558073299,0.49093159,108660.0,108650.0,0.4155204]
[1756558075105,0.49093159,108660.0,108650.0,0.17064923]
[1756558075305,0.55705552,108660.0,108650.0,0.4155204]
[1756558077210,0.55705552,108660.0,108650.0,0.17064923]
[1756558077408,0.55705552,108660.0,108650.0,0.4155204]
[1756558080313,0.19625552,108660.0,108650.0,0.4155204]
[1756558081404,0.19625552,108660.0,108650.0,0.17064923]
[1756558081610,1.29679786,108660.0,108650.0,0.07544923]
[1756558081805,1.02679276,108660.0,108630.0,0.31642366]
[1756558082006,0.76582287,108650.0,108640.0,0.09071]
[1756558082504,0.40502287,108650.0,108640.0,0.09071]
[1756558082711,0.1601517,108650.0,108640.0,0.09071]
[1756558085310,0.1601517,108650.0,108640.0,0.33558117]
[1756558088109,0.1601517,108650.0,108640.0,0.09071]
[1756558088419,0.1601517,108650.0,108640.0,0.33558117]
[1756558088420,0.09391,108650.0,108640.0,0.33558117]
[1756558091710,0.33878117,108650.0,108640.0,0.09071]
[1756558092410,0.09391,108650.0,108640.0,0.09071]
[1756558092715,0.33878117,108650.0,108640.0,0.33558117]
[1756558093320,0.09391,108650.0,108640.0,0.33558117]
[1756558093717,0.09391,108650.0,108640.0,0.09071]
[1756558093920,0.09391,108650.0,108640.0,0.33558117]
[1756558094222,0.33878117,108650.0,108640.0,0.09071]
[1756558094610,0.35839463,108650.0,108640.0,0.09071]
[1756558095320,0.71919463,108650.0,108640.0,0.09071]
[1756558096115,0.78543633,108650.0,108630.0,0.05314]
[1756558096312,0.33878117,108640.0,108630.0,0.09071]
[1756558096511,0.35839463,108640.0,108630.0,0.09071]
[1756558098520,0.42463633,108640.0,108630.0,0.09071]
[1756558099414,0.35839463,108640.0,108630.0,0.09071]
[1756558099617,0.42463633,108640.0,108630.0,0.09071]
[1756558101123,0.17976516,108640.0,108630.0,0.09071]
[1756558101323,0.42463633,108640.0,108630.0,0.09071]
[1756558102517,0.42463633,108640.0,108630.0,0.03757]
[1756558102719,0.09391,108630.0,108620.0,0.71517638]
[1756558103023,0.11352346,108630.0,108620.0,1.57213638]
[1756558103925,0.11352346,108630.0,108620.0,1.32726521]
[1756558104128,0.17976516,108630.0,108620.0,0.47030521]
[1756558104425,0.35839463,108630.0,108620.0,0.71517638]
[1756558104723,0.17976516,108630.0,108620.0,0.71517638]
[1756558105223,0.11352346,108630.0,108620.0,0.71517638]
[1756558106129,0.17976516,108630.0,108620.0,0.71517638]
[1756558106429,0.11352346,108630.0,108620.0,0.71517638]
[1756558107121,0.17976516,108630.0,108620.0,0.71517638]
[1756558107328,0.11352346,108630.0,108620.0,0.71517638]
[1756558109631,0.17976516,108630.0,108620.0,0.71517638]
[1756558110228,0.11352346,108630.0,108620.0,0.71517638]
[1756558112332,0.05538346,108630.0,108620.0,0.71517638]
[1756558112725,0.10808346,108630.0,108620.0,0.47030521]
[1756558112921,0.15773186,108630.0,108620.0,0.71517638]
[1756558114624,0.15789379,108630.0,108620.0,0.71517638]
[1756558115034,0.15789379,108630.0,108620.0,0.47030521]
[1756558115332,0.10519379,108630.0,108620.0,0.71517638]
[1756558115829,0.06942379,108630.0,108620.0,0.71517638]
[1756558116533,0.06942379,108630.0,108620.0,0.96517638]
[1756558117232,0.01977539,108630.0,108620.0,1.21004755]
[1756558117535,0.01977539,108630.0,108620.0,0.96517638]
[1756558117536,0.0496484,108630.0,108620.0,0.96517638]
[1756558118026,0.01494379,108640.0,108620.0,1.21004755]
[1756558118233,0.4797417,108650.0,108630.0,1.70722234]
[1756558118530,0.5150517,108650.0,108640.0,0.24487117]
[1756558119035,0.44881,108650.0,108640.0,0.24487117]
[1756558120241,0.08801,108650.0,108640.0,0.62446939]
[1756558121436,0.08801,108650.0,108640.0,0.37959822]
[1756558121733,0.08801,108650.0,108640.0,0.62446939]
[1756558121935,0.08801,108650.0,108640.0,0.60567117]
[1756558125929,0.03531,108650.0,108640.0,0.60567117]
[1756558130137,0.05487905,108650.0,108640.0,0.60567117]
[1756558132432,0.10757905,108650.0,108640.0,0.60567117]
[1756558133439,0.10757905,108650.0,108640.0,0.85025036]
[1756558133735,0.05487905,108650.0,108640.0,0.85025036]
[1756558136939,0.05487322,108650.0,108640.0,0.85025036]
[1756558138243,0.04962607,108650.0,108640.0,0.85025036]
[1756558138443,0.04962645,108650.0,108640.0,1.10025036]
[1756558138643,0.06918967,108650.0,108640.0,1.95625036]
[1756558139447,0.06918967,108650.0,108640.0,1.70625036]
[1756558140946,0.06918967,108650.0,108640.0,1.70621036]
[1756558141144,0.06918967,108650.0,108640.0,0.85025036]
[1756558141345,0.06918967,108650.0,108640.0,1.70617036]
[1756558142345,0.06918967,108650.0,108640.0,1.95089554]
[1756558142546,0.1189417,108670.0,108640.0,1.95089554]
[1756558142748,0.36159481,108670.0,108660.0,0.48945036]
[1756558143041,0.08977,108660.0,108650.0,0.3608]
[1756558143443,0.08977,108660.0,108650.0,0.85025036]
[1756558147938,0.08977,108660.0,108650.0,0.3608]
[1756558148139,0.08977,108660.0,108650.0,0.85025036]
[1756558149745,0.03602,108660.0,108650.0,0.85025036]
[1756558149946,0.03602,108660.0,108650.0,0.92413156]
[1756558151047,0.1022617,108660.0,108650.0,0.92413156]
[1756558154249,0.1022617,108660.0,108650.0,0.4346812]
[1756558154445,0.03602,108660.0,108650.0,1.53480638]
[1756558154641,0.08977,108660.0,108650.0,1.53480638]
[1756558155348,0.08977,108660.0,108650.0,1.77953156]
[1756558155549,0.08977,108660.0,108650.0,1.53480638]
[1756558155749,0.28074518,108670.0,108660.0,0.09034]
[1756558155947,0.28074518,108670.0,108660.0,0.69586518]
[1756558156144,0.28074518,108670.0,108660.0,0.45114]
[1756558156449,0.28074518,108670.0,108660.0,0.69586518]
[1756558156647,0.28074518,108670.0,108660.0,0.33506518]
[1756558156846,0.03602,108670.0,108660.0,0.33506518]
[1756558157048,0.28074518,108670.0,108660.0,0.33506518]
[1756558157455,0.30535658,108670.0,108660.0,0.33506518]
[1756558157754,0.35910658,108670.0,108660.0,0.33506518]
[1756558160851,0.1143814,108670.0,108660.0,0.09034]
[1756558161057,0.35910658,108670.0,108660.0,0.33506518]
[1756558161758,0.35910658,108670.0,108660.0,0.57979036]
[1756558162661,0.40877813,108670.0,108660.0,0.57979036]
[1756558163350,0.40877813,108670.0,108660.0,0.09034]
[1756558163555,0.40877813,108670.0,108660.0,0.57979036]
[1756558163755,0.16405295,108670.0,108660.0,0.57979036]
[1756558164060,0.40877813,108670.0,108660.0,0.57979036]
[1756558164359,0.35910658,108670.0,108660.0,0.57979036]
[1756558164558,0.42534828,108670.0,108660.0,0.57979036]
[1756558165562,0.1806231,108670.0,108660.0,0.57979036]
[1756558165763,0.42534828,108670.0,108660.0,0.57979036]
[1756558169963,0.42534828,108670.0,108660.0,0.33506518]
[1756558170458,0.42534828,108670.0,108660.0,0.09034]
[1756558170664,0.78614828,108670.0,108660.0,0.33506518]
[1756558172368,0.78614828,108670.0,108660.0,0.09034]
[1756558172561,0.78614828,108670.0,108660.0,0.33506518]
[1756558173260,0.78614828,108670.0,108660.0,0.09034]
[1756558173461,0.78614828,108670.0,108660.0,0.33506518]
[1756558173862,0.80584512,108670.0,108660.0,0.33506518]
[1756558174568,0.56111994,108670.0,108660.0,0.33506518]
[1756558174767,0.73960342,108670.0,108660.0,0.33506518]
[1756558177068,0.73960342,108670.0,108660.0,0.09034]
[1756558177367,0.73960342,108670.0,108660.0,0.33506518]
[1756558179372,0.82203598,108670.0,108660.0,0.33506518]
[1756558181370,0.73960342,108670.0,108660.0,0.33506518]
[1756558182273,0.73960342,108670.0,108660.0,0.09034]
[1756558182473,0.73960342,108670.0,108660.0,0.33506518]
[1756558184767,0.37880342,108670.0,108660.0,0.33506518]
[1756558191075,0.46123598,108670.0,108660.0,0.33506518]
[1756558195382,0.2165108,108670.0,108660.0,0.09034]
[1756558195690,0.46123598,108670.0,108660.0,0.33506518]
[1756558195888,0.2165108,108670.0,108660.0,0.33506518]
[1756558196090,0.46123598,108670.0,108660.0,0.09034]
[1756558196293,0.46123598,108670.0,108660.0,0.33506518]
[1756558198089,0.46123598,108670.0,108660.0,0.24472518]
[1756558198290,0.46123598,108670.0,108640.0,0.30108497]
[1756558198291,0.09025,108650.0,108640.0,0.30108497]
[1756558198595,0.78175399,108650.0,108640.0,0.05635979]
[1756558198787,0.78175399,108650.0,108640.0,0.30108497]
[1756558199293,0.71547202,108650.0,108640.0,0.03679]
[1756558199499,0.78172727,108650.0,108640.0,0.03679]
[1756558199696,0.78172727,108650.0,108640.0,0.28151518]
[1756558199994,1.14252727,108650.0,108640.0,0.28151518]
[1756558200188,1.14252727,108650.0,108640.0,0.03679]
[1756558200783,0.05421,108640.0,108620.0,0.33118588]
[1756558200987,0.05421,108640.0,108610.0,0.01852594]
[1756558200988,2.10069036,108630.0,108590.0,0.33726946]
[1756558201190,0.64516518,108600.0,108590.0,0.31892307]
[1756558201390,0.10904316,108600.0,108590.0,0.31892307]
[1756558201590,0.30406202,108600.0,108590.0,0.00046]
[1756558201899,0.05933684,108600.0,108590.0,0.24518518]
[1756558202391,0.01969684,108600.0,108590.0,1.10071036]
[1756558202699,0.04970632,108610.0,108590.0,1.10071036]
[1756558202990,0.7509515,108620.0,108610.0,0.0042]
[1756558203192,0.77117598,108620.0,108610.0,0.25155518]
[1756558203394,0.5264508,108620.0,108610.0,0.25170765]
[1756558206192,0.77132845,108620.0,108610.0,0.00683]
[1756558206392,0.77132845,108620.0,108610.0,0.0042]
[1756558206702,0.09572,108610.0,108600.0,0.86035]
[1756558206897,0.72162213,108610.0,108600.0,0.00683]
[1756558207092,0.72162213,108610.0,108600.0,1.11035]